{"text_format":"3","workbook":"xlsx","n_sheets":2,"sheets":["Разходи","Категория"],"not_rendered":{"defined_names":5},"read":"whole","date_system":"1900"}

{"sheet":"Разходи","index":0,"n_rows":25,"n_cols":7,"rows_kept":25,"merged":[[0,1,0,5],[1,1,1,5]]}
[null,"БЮДЖЕТ НА РАЗХОДИТЕ",{"$nulls":4},{"$f":"TODAY()","v":{"v":44574,"d":"4457400.00%"}}]
[null,"Име на фирма"]
[null,"Разход","Категория","Бюджет","Действителен","Разлика (лв.)","Разлика (%)"]
[null,"Реклама","Оперативни",null,null,{"$f":"IFERROR(SUM(Разходи[[#This Row],[Бюджет]]-Разходи[[#This Row],[Действителен]]), \"\")","v":0},{"$f":"IFERROR(SUM(Разходи[[#This Row],[Разлика (лв.)]]/Разходи[[#This Row],[Бюджет]]),\"\")","v":""}]
[null,"Задължения","Оперативни",null,null,{"$f":"IFERROR(SUM(Разходи[[#This Row],[Бюджет]]-Разходи[[#This Row],[Действителен]]), \"\")","v":0},{"$f":"IFERROR(SUM(Разходи[[#This Row],[Разлика (лв.)]]/Разходи[[#This Row],[Бюджет]]),\"\")","v":""}]
[null,"Осигуровки","Оперативни",null,null,{"$f":"IFERROR(SUM(Разходи[[#This Row],[Бюджет]]-Разходи[[#This Row],[Действителен]]), \"\")","v":0},{"$f":"IFERROR(SUM(Разходи[[#This Row],[Разлика (лв.)]]/Разходи[[#This Row],[Бюджет]]),\"\")","v":""}]
[null,"Консумативи","Оперативни",null,null,{"$f":"IFERROR(SUM(Разходи[[#This Row],[Бюджет]]-Разходи[[#This Row],[Действителен]]), \"\")","v":0},{"$f":"IFERROR(SUM(Разходи[[#This Row],[Разлика (лв.)]]/Разходи[[#This Row],[Бюджет]]),\"\")","v":""}]
[null,"Пощенски разходи","Оперативни",null,null,{"$f":"IFERROR(SUM(Разходи[[#This Row],[Бюджет]]-Разходи[[#This Row],[Действителен]]), \"\")","v":0},{"$f":"IFERROR(SUM(Разходи[[#This Row],[Разлика (лв.)]]/Разходи[[#This Row],[Бюджет]]),\"\")","v":""}]
[null,"Наем или ипотека","Оперативни",null,null,{"$f":"IFERROR(SUM(Разходи[[#This Row],[Бюджет]]-Разходи[[#This Row],[Действителен]]), \"\")","v":0},{"$f":"IFERROR(SUM(Разходи[[#This Row],[Разлика (лв.)]]/Разходи[[#This Row],[Бюджет]]),\"\")","v":""}]
[null,"Търговски разходи","Оперативни",null,null,{"$f":"IFERROR(SUM(Разходи[[#This Row],[Бюджет]]-Разходи[[#This Row],[Действителен]]), \"\")","v":0},{"$f":"IFERROR(SUM(Разходи[[#This Row],[Разлика (лв.)]]/Разходи[[#This Row],[Бюджет]]),\"\")","v":""}]
[null,"Данъци","Оперативни",null,null,{"$f":"IFERROR(SUM(Разходи[[#This Row],[Бюджет]]-Разходи[[#This Row],[Действителен]]), \"\")","v":0},{"$f":"IFERROR(SUM(Разходи[[#This Row],[Разлика (лв.)]]/Разходи[[#This Row],[Бюджет]]),\"\")","v":""}]
[null,"Комунални услуги","Оперативни",null,null,{"$f":"IFERROR(SUM(Разходи[[#This Row],[Бюджет]]-Разходи[[#This Row],[Действителен]]), \"\")","v":0},{"$f":"IFERROR(SUM(Разходи[[#This Row],[Разлика (лв.)]]/Разходи[[#This Row],[Бюджет]]),\"\")","v":""}]
[null,"Други","Оперативни",null,null,{"$f":"IFERROR(SUM(Разходи[[#This Row],[Бюджет]]-Разходи[[#This Row],[Действителен]]), \"\")","v":0},{"$f":"IFERROR(SUM(Разходи[[#This Row],[Разлика (лв.)]]/Разходи[[#This Row],[Бюджет]]),\"\")","v":""}]
[null,"Застраховка","Оперативни",null,null,{"$f":"IFERROR(SUM(Разходи[[#This Row],[Бюджет]]-Разходи[[#This Row],[Действителен]]), \"\")","v":0},{"$f":"IFERROR(SUM(Разходи[[#This Row],[Разлика (лв.)]]/Разходи[[#This Row],[Бюджет]]),\"\")","v":""}]
[null,"Лихва","Оперативни",null,null,{"$f":"IFERROR(SUM(Разходи[[#This Row],[Бюджет]]-Разходи[[#This Row],[Действителен]]), \"\")","v":0},{"$f":"IFERROR(SUM(Разходи[[#This Row],[Разлика (лв.)]]/Разходи[[#This Row],[Бюджет]]),\"\")","v":""}]
[null,"Телефон","Оперативни",null,null,{"$f":"IFERROR(SUM(Разходи[[#This Row],[Бюджет]]-Разходи[[#This Row],[Действителен]]), \"\")","v":0},{"$f":"IFERROR(SUM(Разходи[[#This Row],[Разлика (лв.)]]/Разходи[[#This Row],[Бюджет]]),\"\")","v":""}]
[null,"Поддръжка и ремонти","Оперативни",null,null,{"$f":"IFERROR(SUM(Разходи[[#This Row],[Бюджет]]-Разходи[[#This Row],[Действителен]]), \"\")","v":0},{"$f":"IFERROR(SUM(Разходи[[#This Row],[Разлика (лв.)]]/Разходи[[#This Row],[Бюджет]]),\"\")","v":""}]
[null,"Юридически такси","Оперативни",null,null,{"$f":"IFERROR(SUM(Разходи[[#This Row],[Бюджет]]-Разходи[[#This Row],[Действителен]]), \"\")","v":0},{"$f":"IFERROR(SUM(Разходи[[#This Row],[Разлика (лв.)]]/Разходи[[#This Row],[Бюджет]]),\"\")","v":""}]
[null,"Амортизация","Оперативни",null,null,{"$f":"IFERROR(SUM(Разходи[[#This Row],[Бюджет]]-Разходи[[#This Row],[Действителен]]), \"\")","v":0},{"$f":"IFERROR(SUM(Разходи[[#This Row],[Разлика (лв.)]]/Разходи[[#This Row],[Бюджет]]),\"\")","v":""}]
[null,"Доставки","Оперативни",null,null,{"$f":"IFERROR(SUM(Разходи[[#This Row],[Бюджет]]-Разходи[[#This Row],[Действителен]]), \"\")","v":0},{"$f":"IFERROR(SUM(Разходи[[#This Row],[Разлика (лв.)]]/Разходи[[#This Row],[Бюджет]]),\"\")","v":""}]
[null,"Складове","Оперативни",null,null,{"$f":"IFERROR(SUM(Разходи[[#This Row],[Бюджет]]-Разходи[[#This Row],[Действителен]]), \"\")","v":0},{"$f":"IFERROR(SUM(Разходи[[#This Row],[Разлика (лв.)]]/Разходи[[#This Row],[Бюджет]]),\"\")","v":""}]
[null,"Магазин","Лични",null,null,{"$f":"IFERROR(SUM(Разходи[[#This Row],[Бюджет]]-Разходи[[#This Row],[Действителен]]), \"\")","v":0},{"$f":"IFERROR(SUM(Разходи[[#This Row],[Разлика (лв.)]]/Разходи[[#This Row],[Бюджет]]),\"\")","v":""}]
[null,"Продавачи","Лични",null,null,{"$f":"IFERROR(SUM(Разходи[[#This Row],[Бюджет]]-Разходи[[#This Row],[Действителен]]), \"\")","v":0},{"$f":"IFERROR(SUM(Разходи[[#This Row],[Разлика (лв.)]]/Разходи[[#This Row],[Бюджет]]),\"\")","v":""}]
[null,"Други","Лични",null,null,{"$f":"IFERROR(SUM(Разходи[[#This Row],[Бюджет]]-Разходи[[#This Row],[Действителен]]), \"\")","v":0},{"$f":"IFERROR(SUM(Разходи[[#This Row],[Разлика (лв.)]]/Разходи[[#This Row],[Бюджет]]),\"\")","v":""}]
[null,"Общо разходи",null,{"$f":"IFERROR(SUM(Разходи[Бюджет]), \"\")","v":0},{"$f":"IFERROR(SUM(Разходи[Действителен]), \"\")","v":0},{"$f":"IFERROR(SUM(Разходи[Разлика (лв.)]), \"\")","v":0},{"$f":"IFERROR(SUM(Разходи[[#Totals],[Разлика (лв.)]]/Разходи[[#Totals],[Бюджет]]),\"\")","v":""}]

{"sheet":"Категория","index":1,"n_rows":4,"n_cols":2,"rows_kept":4}
[null,"Търсене на категория"]
[null,"Категория"]
[null,"Оперативни"]
[null,"Лични"]